[Event "Titled Tuesday Blitz May 31 Early 2022"]
[White "Kucuksari, Kaan"]
[Black "Blackman, Justin"]
[WhiteFideId "6380166"]
[BlackFideId "11100516"]
[WhiteElo "2305"]
[BlackElo "2112"]
[Result "1-0"]
[Round "07"]
[TimeControl "180+1"]
[Date "2022.06.01"]
[WhiteClock "0:00:05"]
[BlackClock "0:00:16"]

1. d4 {[%clk 0:02:55]}  Nf6 {[%clk 0:02:59]} 2. c4 {[%clk 0:02:55]}  e6 {[%clk 0:02:56]} 3. g3 {[%clk 0:02:54]}  d5 {[%clk 0:02:55]} 4. Nf3 {[%clk 0:02:53]}  Be7 {[%clk 0:02:54]} 5. Bg2 {[%clk 0:02:53]}  O-O {[%clk 0:02:54]} 6. O-O {[%clk 0:02:54]}  dxc4 {[%clk 0:02:44]} 7. Qc2 {[%clk 0:02:55]}  a6 {[%clk 0:02:44]} 8. a4 {[%clk 0:02:56]}  Bd7 {[%clk 0:02:43]} 9. Qxc4 {[%clk 0:02:56]}  Bc6 {[%clk 0:02:43]} 10. Bf4 {[%clk 0:02:56]}  b5 {[%clk 0:02:24]} 11. Qc2 {[%clk 0:02:31]}  Nd5 {[%clk 0:02:16]} 12. Ne5 {[%clk 0:02:30]}  Be8 {[%clk 0:02:09]} 13. Nc3 {[%clk 0:02:29]}  c6 {[%clk 0:02:03]} 14. axb5 {[%clk 0:02:29]}  cxb5 {[%clk 0:01:58]} 15. Nxd5 {[%clk 0:02:29]}  exd5 {[%clk 0:01:58]} 16. Qb3 {[%clk 0:02:29]}  Nc6 {[%clk 0:01:53]} 17. Nxc6 {[%clk 0:02:20]}  Bxc6 {[%clk 0:01:52]} 18. Rfc1 {[%clk 0:02:20]}  Bb7 {[%clk 0:01:33]} 19. Rc7 {[%clk 0:02:20]}  Rb8 {[%clk 0:01:29]} 20. Rac1 {[%clk 0:02:04]}  Bd6 {[%clk 0:01:28]} 21. Bxd6 {[%clk 0:01:54]}  Qxd6 {[%clk 0:01:29]} 22. e3 {[%clk 0:01:51]}  h5 {[%clk 0:01:28]} 23. h4 {[%clk 0:01:51]}  g6 {[%clk 0:01:27]} 24. R1c5 {[%clk 0:01:49]}  Rfd8 {[%clk 0:01:27]} 25. Qc3 {[%clk 0:01:49]}  Kg7 {[%clk 0:01:23]} 26. Qc1 {[%clk 0:01:42]}  Qf6 {[%clk 0:01:20]} 27. Qc3 {[%clk 0:01:27]}  Qe6 {[%clk 0:01:13]} 28. Kh2 {[%clk 0:01:16]}  Qf6 {[%clk 0:01:08]} 29. Qc2 {[%clk 0:01:16]}  Rd6 {[%clk 0:01:04]} 30. Bh3 {[%clk 0:01:04]}  Rdd8 {[%clk 0:01:04]} 31. Kg1 {[%clk 0:00:49]}  Re8 {[%clk 0:01:04]} 32. Rd7 {[%clk 0:00:46]}  Red8 {[%clk 0:01:02]} 33. Rcc7 {[%clk 0:00:43]}  Rxd7 {[%clk 0:01:01]} 34. Rxd7 {[%clk 0:00:43]}  Bc8 {[%clk 0:00:57]} 35. Rxf7+ {[%clk 0:00:27]}  Qxf7 {[%clk 0:00:58]} 36. Bxc8 {[%clk 0:00:27]}  Rb6 {[%clk 0:00:52]} 37. Bh3 {[%clk 0:00:26]}  Rf6 {[%clk 0:00:50]} 38. Bg2 {[%clk 0:00:24]}  Qd7 {[%clk 0:00:47]} 39. Qc5 {[%clk 0:00:24]}  Qf5 {[%clk 0:00:46]} 40. f4 {[%clk 0:00:21]}  Qb1+ {[%clk 0:00:45]} 41. Kh2 {[%clk 0:00:20]}  Qd3 {[%clk 0:00:38]} 42. Qe7+ {[%clk 0:00:21]}  Rf7 {[%clk 0:00:36]} 43. Qe5+ {[%clk 0:00:22]}  Rf6 {[%clk 0:00:34]} 44. Bxd5 {[%clk 0:00:17]}  Qf5 {[%clk 0:00:33]} 45. Qe7+ {[%clk 0:00:16]}  Kh6 {[%clk 0:00:33]} 46. Bg2 {[%clk 0:00:15]}  Rf7 {[%clk 0:00:32]} 47. Qd8 {[%clk 0:00:15]}  Rd7 {[%clk 0:00:26]} 48. Qh8+ {[%clk 0:00:13]}  Rh7 {[%clk 0:00:24]} 49. Qa8 {[%clk 0:00:11]}  Rc7 {[%clk 0:00:21]} 50. Qxa6 {[%clk 0:00:09]}  Rc2 {[%clk 0:00:21]} 51. Qa8 {[%clk 0:00:09]}  Qf6 {[%clk 0:00:18]} 52. Qd5 {[%clk 0:00:06]}  Kg7 {[%clk 0:00:17]} 53. b4 {[%clk 0:00:06]}  Qe7 {[%clk 0:00:16]} 54. Qxb5 {[%clk 0:00:04]}  Qe4 {[%clk 0:00:16]} 55. Qe5+ {[%clk 0:00:04]}  Qxe5 {[%clk 0:00:15]} 56. fxe5 {[%clk 0:00:04]}  Re2 {[%clk 0:00:15]} 57. b5 {[%clk 0:00:04]}  Rxe3 {[%clk 0:00:15]} 58. b6 {[%clk 0:00:04]}  Rb3 {[%clk 0:00:15]} 59. b7 {[%clk 0:00:05]}  Kf7 {[%clk 0:00:16]} 60. Bd5+ {[%clk 0:00:05]} 1-0


[Site "https://www.chess.com"]

[Event "Titled Tuesday Blitz May 31 Early 2022"]
[White "Kvaloy, Aksel Bu"]
[Black "Bekturov, Tamerlan"]
[WhiteFideId "1528815"]
[BlackFideId "13710184"]
[WhiteElo "2053"]
[BlackElo "2151"]
[Result "0-1"]
[Round "07"]
[TimeControl "180+1"]
[Date "2022.06.01"]
[WhiteClock "0:00:02"]
[BlackClock "0:00:22"]

1. e4 {[%clk 0:03:00]}  c5 {[%clk 0:02:58]} 2. Nf3 {[%clk 0:03:00]}  Nf6 {[%clk 0:02:58]} 3. e5 {[%clk 0:02:59]}  Nd5 {[%clk 0:02:58]} 4. Nc3 {[%clk 0:02:59]}  e6 {[%clk 0:02:58]} 5. Ne4 {[%clk 0:02:59]}  f5 {[%clk 0:02:51]} 6. Nc3 {[%clk 0:02:58]}  Nxc3 {[%clk 0:02:40]} 7. dxc3 {[%clk 0:02:57]}  d5 {[%clk 0:02:41]} 8. exd6 {[%clk 0:02:53]}  Qxd6 {[%clk 0:02:41]} 9. Bb5+ {[%clk 0:02:47]}  Bd7 {[%clk 0:02:41]} 10. Bxd7+ {[%clk 0:02:47]}  Nxd7 {[%clk 0:02:42]} 11. O-O {[%clk 0:02:47]}  Qxd1 {[%clk 0:02:02]} 12. Rxd1 {[%clk 0:02:48]}  Be7 {[%clk 0:02:02]} 13. Bf4 {[%clk 0:02:44]}  O-O-O {[%clk 0:02:02]} 14. Bg5 {[%clk 0:02:36]}  Bf6 {[%clk 0:01:57]} 15. Bxf6 {[%clk 0:02:30]}  gxf6 {[%clk 0:01:53]} 16. Re1 {[%clk 0:02:27]}  Rhe8 {[%clk 0:01:52]} 17. b3 {[%clk 0:02:17]}  Kc7 {[%clk 0:01:51]} 18. c4 {[%clk 0:02:17]}  Nb8 {[%clk 0:01:50]} 19. Re2 {[%clk 0:02:14]}  Nc6 {[%clk 0:01:49]} 20. Rae1 {[%clk 0:02:14]}  e5 {[%clk 0:01:48]} 21. c3 {[%clk 0:02:11]}  Rd3 {[%clk 0:01:48]} 22. Rc2 {[%clk 0:02:07]}  Red8 {[%clk 0:01:42]} 23. Kf1 {[%clk 0:02:05]}  f4 {[%clk 0:01:33]} 24. Nh4 {[%clk 0:01:37]}  Ne7 {[%clk 0:01:24]} 25. g3 {[%clk 0:01:36]}  f3 {[%clk 0:01:19]} 26. Rcc1 {[%clk 0:01:02]}  Ng6 {[%clk 0:01:03]} 27. Nxg6 {[%clk 0:00:47]}  hxg6 {[%clk 0:01:04]} 28. Rc2 {[%clk 0:00:47]}  Rd1 {[%clk 0:01:00]} 29. Rc1 {[%clk 0:00:33]}  Rxc1 {[%clk 0:01:00]} 30. Rxc1 {[%clk 0:00:33]}  Rd2 {[%clk 0:01:01]} 31. a3 {[%clk 0:00:25]}  e4 {[%clk 0:00:57]} 32. g4 {[%clk 0:00:18]}  Kd6 {[%clk 0:00:55]} 33. h3 {[%clk 0:00:14]}  Ke5 {[%clk 0:00:55]} 34. b4 {[%clk 0:00:13]}  b6 {[%clk 0:00:54]} 35. a4 {[%clk 0:00:11]}  Rb2 {[%clk 0:00:51]} 36. a5 {[%clk 0:00:05]}  cxb4 {[%clk 0:00:46]} 37. axb6 {[%clk 0:00:05]}  axb6 {[%clk 0:00:46]} 38. cxb4 {[%clk 0:00:05]}  Rxb4 {[%clk 0:00:47]} 39. c5 {[%clk 0:00:05]}  bxc5 {[%clk 0:00:45]} 40. Rxc5+ {[%clk 0:00:06]}  Kf4 {[%clk 0:00:46]} 41. Kg1 {[%clk 0:00:05]}  Rb1+ {[%clk 0:00:45]} 42. Kh2 {[%clk 0:00:05]}  Rb2 {[%clk 0:00:40]} 43. Kg1 {[%clk 0:00:05]}  Rb1+ {[%clk 0:00:37]} 44. Kh2 {[%clk 0:00:05]}  Rf1 {[%clk 0:00:28]} 45. Rc2 {[%clk 0:00:04]}  Re1 {[%clk 0:00:29]} 46. Rc4 {[%clk 0:00:02]}  Kg5 {[%clk 0:00:25]} 47. Rc3 {[%clk 0:00:02]}  f5 {[%clk 0:00:23]} 48. gxf5 {[%clk 0:00:02]}  gxf5 {[%clk 0:00:24]} 49. Rb3 {[%clk 0:00:02]}  Kh4 {[%clk 0:00:22]} 50. Ra3 {[%clk 0:00:02]}  Re2 {[%clk 0:00:22]} 51. Kg1 {[%clk 0:00:02]}  Kxh3 {[%clk 0:00:22]} 52. Ra1 {[%clk 0:00:03]}  Rd2 {[%clk 0:00:22]} 53. Rb1 {[%clk 0:00:03]}  f4 {[%clk 0:00:22]} 54. Rb6 {[%clk 0:00:02]}  Rd1# {[%clk 0:00:22]} 0-1


[Site "https://www.chess.com"]

[Event "Titled Tuesday Blitz May 31 Early 2022"]
[White "Lazavik, Denis"]
[Black "Korchmar, Vasiliy"]
[WhiteFideId "13515110"]
[BlackFideId "24131750"]
[WhiteElo "2437"]
[BlackElo "2370"]
[Result "1-0"]
[Round "07"]
[TimeControl "180+1"]
[Date "2022.05.31"]
[WhiteClock "0:00:07"]
[BlackClock "0:00:09"]

1. d4 {[%clk 0:03:00]}  d5 {[%clk 0:03:00]} 2. c4 {[%clk 0:03:00]}  c6 {[%clk 0:03:00]} 3. Nf3 {[%clk 0:03:00]}  Nf6 {[%clk 0:03:00]} 4. e3 {[%clk 0:03:01]}  e6 {[%clk 0:03:00]} 5. b3 {[%clk 0:03:01]}  Bd6 {[%clk 0:02:59]} 6. Bd3 {[%clk 0:03:00]}  O-O {[%clk 0:02:59]} 7. Bb2 {[%clk 0:03:00]}  Nbd7 {[%clk 0:03:00]} 8. O-O {[%clk 0:03:00]}  Qe7 {[%clk 0:02:57]} 9. Nbd2 {[%clk 0:02:54]}  e5 {[%clk 0:02:55]} 10. e4 {[%clk 0:02:53]}  dxe4 {[%clk 0:02:48]} 11. Nxe4 {[%clk 0:02:53]}  Nxe4 {[%clk 0:02:48]} 12. Bxe4 {[%clk 0:02:53]}  f5 {[%clk 0:02:46]} 13. dxe5 {[%clk 0:02:53]}  Nxe5 {[%clk 0:02:45]} 14. Bxe5 {[%clk 0:02:32]}  Bxe5 {[%clk 0:02:43]} 15. Bd5+ {[%clk 0:02:32]}  Kh8 {[%clk 0:02:10]} 16. Re1 {[%clk 0:02:31]}  cxd5 {[%clk 0:01:41]} 17. Rxe5 {[%clk 0:02:23]}  Qf6 {[%clk 0:01:41]} 18. Qxd5 {[%clk 0:02:20]}  Rd8 {[%clk 0:01:39]} 19. Rae1 {[%clk 0:02:09]}  Bd7 {[%clk 0:01:27]} 20. Ng5 {[%clk 0:01:28]}  Be8 {[%clk 0:00:41]} 21. Qe6 {[%clk 0:01:12]}  Bh5 {[%clk 0:00:26]} 22. h4 {[%clk 0:00:57]}  h6 {[%clk 0:00:22]} 23. Rxf5 {[%clk 0:00:56]}  Qc3 {[%clk 0:00:18]} 24. Nf7+ {[%clk 0:00:47]}  Bxf7 {[%clk 0:00:18]} 25. Rxf7 {[%clk 0:00:48]}  Rf8 {[%clk 0:00:06]} 26. Rxf8+ {[%clk 0:00:34]}  Rxf8 {[%clk 0:00:07]} 27. Qe3 {[%clk 0:00:34]}  Qb2 {[%clk 0:00:06]} 28. Re2 {[%clk 0:00:33]}  Qa1+ {[%clk 0:00:05]} 29. Kh2 {[%clk 0:00:34]}  Qf6 {[%clk 0:00:05]} 30. g3 {[%clk 0:00:33]}  a5 {[%clk 0:00:06]} 31. Rd2 {[%clk 0:00:32]}  a4 {[%clk 0:00:06]} 32. Qc5 {[%clk 0:00:26]}  axb3 {[%clk 0:00:05]} 33. axb3 {[%clk 0:00:27]}  Qf3 {[%clk 0:00:04]} 34. b4 {[%clk 0:00:22]}  Re8 {[%clk 0:00:05]} 35. Qd5 {[%clk 0:00:21]}  Qc3 {[%clk 0:00:02]} 36. b5 {[%clk 0:00:16]}  b6 {[%clk 0:00:01]} 37. Qd7 {[%clk 0:00:14]}  Rg8 {[%clk 0:00:02]} 38. Qd3 {[%clk 0:00:12]}  Qb4 {[%clk 0:00:01]} 39. Rc2 {[%clk 0:00:12]}  Qc5 {[%clk 0:00:02]} 40. Qe3 {[%clk 0:00:11]}  Qb4 {[%clk 0:00:02]} 41. Qxb6 {[%clk 0:00:11]}  Qb3 {[%clk 0:00:02]} 42. Rc1 {[%clk 0:00:11]}  Qf3 {[%clk 0:00:03]} 43. Qe3 {[%clk 0:00:11]}  Qf6 {[%clk 0:00:02]} 44. b6 {[%clk 0:00:10]}  Qb2 {[%clk 0:00:02]} 45. c5 {[%clk 0:00:10]}  Qb5 {[%clk 0:00:01]} 46. Rc2 {[%clk 0:00:08]}  Re8 {[%clk 0:00:01]} 47. Qd2 {[%clk 0:00:05]}  Qc6 {[%clk 0:00:02]} 48. Qd6 {[%clk 0:00:04]}  Qe4 {[%clk 0:00:01]} 49. Rd2 {[%clk 0:00:03]}  Ra8 {[%clk 0:00:01]} 50. Qd5 {[%clk 0:00:03]}  Qe8 {[%clk 0:00:01]} 51. b7 {[%clk 0:00:04]}  Rb8 {[%clk 0:00:01]} 52. c6 {[%clk 0:00:04]}  Qe7 {[%clk 0:00:02]} 53. Qd7 {[%clk 0:00:03]}  Qe5 {[%clk 0:00:01]} 54. c7 {[%clk 0:00:03]}  Rf8 {[%clk 0:00:01]} 55. c8=Q {[%clk 0:00:03]}  Rxc8 {[%clk 0:00:01]} 56. Qxc8+ {[%clk 0:00:04]}  Kh7 {[%clk 0:00:02]} 57. b8=Q {[%clk 0:00:04]}  Qf6 {[%clk 0:00:03]} 58. Qg8+ {[%clk 0:00:04]}  Kg6 {[%clk 0:00:04]} 59. Qb1+ {[%clk 0:00:04]}  Kh5 {[%clk 0:00:05]} 60. Qd5+ {[%clk 0:00:04]}  g5 {[%clk 0:00:05]} 61. Qd1+ {[%clk 0:00:04]}  Kg6 {[%clk 0:00:05]} 62. h5+ {[%clk 0:00:05]}  Kg7 {[%clk 0:00:04]} 63. Qd7+ {[%clk 0:00:05]}  Qf7 {[%clk 0:00:05]} 64. Qxf7+ {[%clk 0:00:05]}  Kxf7 {[%clk 0:00:06]} 65. Rd7+ {[%clk 0:00:06]}  Kg8 {[%clk 0:00:07]} 66. Qd5+ {[%clk 0:00:06]}  Kh8 {[%clk 0:00:08]} 67. Qe5+ {[%clk 0:00:07]}  Kg8 {[%clk 0:00:09]} 68. Qe8# {[%clk 0:00:07]} 1-0


[Site "https://www.chess.com"]

[Event "Titled Tuesday Blitz May 31 Early 2022"]
[White "Makarian, Rudik"]
[Black "Svane, Frederik"]
[WhiteFideId "44105681"]
[BlackFideId "12923044"]
[WhiteElo "2419"]
[BlackElo "2459"]
[Result "1-0"]
[Round "07"]
[TimeControl "180+1"]
[Date "2022.05.31"]
[WhiteClock "0:00:06"]
[BlackClock "0:00:17"]

1. d3 {[%clk 0:03:00]}  c5 {[%clk 0:02:57]} 2. g3 {[%clk 0:02:58]}  Nc6 {[%clk 0:02:58]} 3. Bg2 {[%clk 0:02:59]}  g6 {[%clk 0:02:58]} 4. c4 {[%clk 0:02:56]}  Bg7 {[%clk 0:02:58]} 5. Nc3 {[%clk 0:02:57]}  d6 {[%clk 0:02:57]} 6. Nf3 {[%clk 0:02:42]}  Qd7 {[%clk 0:02:57]} 7. h4 {[%clk 0:02:40]}  h5 {[%clk 0:02:57]} 8. Ng5 {[%clk 0:02:38]}  b6 {[%clk 0:02:54]} 9. O-O {[%clk 0:02:31]}  Bb7 {[%clk 0:02:53]} 10. e4 {[%clk 0:02:23]}  e6 {[%clk 0:02:50]} 11. f4 {[%clk 0:02:19]}  Nh6 {[%clk 0:02:49]} 12. Bh3 {[%clk 0:02:15]}  Nd4 {[%clk 0:02:45]} 13. Be3 {[%clk 0:02:06]}  f5 {[%clk 0:02:43]} 14. Ne2 {[%clk 0:01:57]}  Ng4 {[%clk 0:02:40]} 15. Bxg4 {[%clk 0:01:54]}  hxg4 {[%clk 0:02:40]} 16. Nxd4 {[%clk 0:01:46]}  cxd4 {[%clk 0:02:41]} 17. Bd2 {[%clk 0:01:44]}  e5 {[%clk 0:02:37]} 18. Qe2 {[%clk 0:01:42]}  O-O-O {[%clk 0:02:36]} 19. a4 {[%clk 0:01:41]}  Bf6 {[%clk 0:02:28]} 20. a5 {[%clk 0:01:34]}  Bxg5 {[%clk 0:02:28]} 21. fxg5 {[%clk 0:01:32]}  f4 {[%clk 0:02:18]} 22. axb6 {[%clk 0:01:22]}  axb6 {[%clk 0:02:13]} 23. Be1 {[%clk 0:01:05]}  Rdf8 {[%clk 0:02:12]} 24. Qd2 {[%clk 0:00:59]}  fxg3 {[%clk 0:02:00]} 25. Bxg3 {[%clk 0:01:00]}  Rf3 {[%clk 0:02:00]} 26. Kg2 {[%clk 0:00:58]}  Rhf8 {[%clk 0:01:56]} 27. b4 {[%clk 0:00:52]}  Qf7 {[%clk 0:01:51]} 28. Rxf3 {[%clk 0:00:51]}  Qxf3+ {[%clk 0:01:34]} 29. Kh2 {[%clk 0:00:51]}  Qe3 {[%clk 0:01:31]} 30. Qxe3 {[%clk 0:00:44]}  dxe3 {[%clk 0:01:32]} 31. Re1 {[%clk 0:00:44]}  Rf3 {[%clk 0:01:31]} 32. Kg2 {[%clk 0:00:36]}  Kd7 {[%clk 0:01:21]} 33. Bh2 {[%clk 0:00:30]}  e2 {[%clk 0:01:14]} 34. Rxe2 {[%clk 0:00:26]}  Rxd3 {[%clk 0:01:14]} 35. Bg1 {[%clk 0:00:23]}  Rc3 {[%clk 0:01:08]} 36. c5 {[%clk 0:00:13]}  bxc5 {[%clk 0:01:02]} 37. bxc5 {[%clk 0:00:14]}  dxc5 {[%clk 0:01:03]} 38. Bf2 {[%clk 0:00:12]}  Ke6 {[%clk 0:01:02]} 39. Kh2 {[%clk 0:00:10]}  Rh3+ {[%clk 0:01:00]} 40. Kg2 {[%clk 0:00:09]}  c4 {[%clk 0:00:59]} 41. Bg3 {[%clk 0:00:05]}  c3 {[%clk 0:00:59]} 42. Kf2 {[%clk 0:00:05]}  Rh1 {[%clk 0:00:44]} 43. Rc2 {[%clk 0:00:06]}  Bxe4 {[%clk 0:00:44]} 44. Rxc3 {[%clk 0:00:06]}  Rb1 {[%clk 0:00:41]} 45. Ra3 {[%clk 0:00:06]}  Rb2+ {[%clk 0:00:41]} 46. Ke3 {[%clk 0:00:07]}  Bd5 {[%clk 0:00:39]} 47. Ra6+ {[%clk 0:00:07]}  Ke7 {[%clk 0:00:30]} 48. Bxe5 {[%clk 0:00:06]}  Rb3+ {[%clk 0:00:31]} 49. Kd4 {[%clk 0:00:06]}  Bf7 {[%clk 0:00:31]} 50. Ra7+ {[%clk 0:00:05]}  Ke6 {[%clk 0:00:31]} 51. Ra6+ {[%clk 0:00:06]}  Ke7 {[%clk 0:00:32]} 52. Bf6+ {[%clk 0:00:06]}  Kd7 {[%clk 0:00:32]} 53. Ra7+ {[%clk 0:00:07]}  Ke6 {[%clk 0:00:32]} 54. Re7+ {[%clk 0:00:07]}  Kd6 {[%clk 0:00:31]} 55. Rxf7 {[%clk 0:00:07]}  g3 {[%clk 0:00:28]} 56. Be5+ {[%clk 0:00:07]}  Ke6 {[%clk 0:00:27]} 57. Rf6+ {[%clk 0:00:08]}  Ke7 {[%clk 0:00:28]} 58. Bd6+ {[%clk 0:00:03]}  Kd7 {[%clk 0:00:29]} 59. Bxg3 {[%clk 0:00:03]}  Rxg3 {[%clk 0:00:29]} 60. Rxg6 {[%clk 0:00:04]}  Rg4+ {[%clk 0:00:29]} 61. Ke5 {[%clk 0:00:05]}  Rxh4 {[%clk 0:00:29]} 62. Kf6 {[%clk 0:00:05]}  Rf4+ {[%clk 0:00:28]} 63. Kg7 {[%clk 0:00:06]}  Ke7 {[%clk 0:00:29]} 64. Rf6 {[%clk 0:00:05]}  Rg4 {[%clk 0:00:22]} 65. g6 {[%clk 0:00:05]}  Ke8 {[%clk 0:00:21]} 66. Rf8+ {[%clk 0:00:05]}  Ke7 {[%clk 0:00:21]} 67. Rf7+ {[%clk 0:00:06]}  Ke8 {[%clk 0:00:22]} 68. Rf1 {[%clk 0:00:06]}  Re4 {[%clk 0:00:21]} 69. Kg8 {[%clk 0:00:06]}  Re6 {[%clk 0:00:21]} 70. g7 {[%clk 0:00:06]}  Re4 {[%clk 0:00:18]} 71. Rh1 {[%clk 0:00:06]}  Rg4 {[%clk 0:00:18]} 72. Kh7 {[%clk 0:00:05]}  Kf7 {[%clk 0:00:16]} 73. Rf1+ {[%clk 0:00:06]}  Ke7 {[%clk 0:00:17]} 74. g8=Q {[%clk 0:00:06]} 1-0


[Site "https://www.chess.com"]

[Event "Titled Tuesday Blitz May 31 Early 2022"]
[White "Meunier-Pion, Jean"]
[Black "De La Colina, Nicolas"]
[WhiteFideId "20685327"]
[BlackFideId "30946921"]
[WhiteElo "2124"]
[BlackElo "2046"]
[Result "0-1"]
[Round "07"]
[TimeControl "180+1"]
[Date "2022.06.01"]
[WhiteClock "0:00:12"]
[BlackClock "0:00:06"]

1. e4 {[%clk 0:03:00]}  c5 {[%clk 0:02:59]} 2. Nf3 {[%clk 0:03:00]}  Nc6 {[%clk 0:02:59]} 3. Bb5 {[%clk 0:03:00]}  Nf6 {[%clk 0:02:59]} 4. e5 {[%clk 0:03:00]}  Nd5 {[%clk 0:02:57]} 5. O-O {[%clk 0:03:00]}  g6 {[%clk 0:02:57]} 6. Re1 {[%clk 0:03:00]}  Bg7 {[%clk 0:02:57]} 7. Nc3 {[%clk 0:03:00]}  Nc7 {[%clk 0:02:56]} 8. Bxc6 {[%clk 0:02:59]}  dxc6 {[%clk 0:02:57]} 9. Ne4 {[%clk 0:02:59]}  b6 {[%clk 0:02:56]} 10. d3 {[%clk 0:02:57]}  O-O {[%clk 0:02:55]} 11. h3 {[%clk 0:02:58]}  Ne6 {[%clk 0:02:53]} 12. a4 {[%clk 0:02:55]}  a5 {[%clk 0:02:52]} 13. Be3 {[%clk 0:02:52]}  Ba6 {[%clk 0:02:27]} 14. b3 {[%clk 0:02:23]}  Qd7 {[%clk 0:02:23]} 15. Qd2 {[%clk 0:02:20]}  Rfd8 {[%clk 0:02:21]} 16. Bh6 {[%clk 0:02:18]}  Bh8 {[%clk 0:02:21]} 17. Nfg5 {[%clk 0:02:14]}  Nd4 {[%clk 0:01:46]} 18. Rac1 {[%clk 0:01:29]}  Ra7 {[%clk 0:01:40]} 19. Qf4 {[%clk 0:00:48]}  Qf5 {[%clk 0:01:32]} 20. Qh4 {[%clk 0:00:26]}  Qxe5 {[%clk 0:01:06]} 21. Nxh7 {[%clk 0:00:21]}  Nf5 {[%clk 0:00:59]} 22. Qg5 {[%clk 0:00:07]}  Nxh6 {[%clk 0:00:58]} 23. Qxh6 {[%clk 0:00:08]}  Qg7 {[%clk 0:00:58]} 24. Qxg7+ {[%clk 0:00:08]}  Bxg7 {[%clk 0:00:59]} 25. Nhg5 {[%clk 0:00:09]}  Rad7 {[%clk 0:00:59]} 26. Nf3 {[%clk 0:00:09]}  e6 {[%clk 0:00:56]} 27. g4 {[%clk 0:00:08]}  Rd5 {[%clk 0:00:48]} 28. Ng3 {[%clk 0:00:07]}  b5 {[%clk 0:00:47]} 29. axb5 {[%clk 0:00:06]}  cxb5 {[%clk 0:00:47]} 30. Ne4 {[%clk 0:00:06]}  c4 {[%clk 0:00:46]} 31. bxc4 {[%clk 0:00:06]}  bxc4 {[%clk 0:00:47]} 32. dxc4 {[%clk 0:00:06]}  Bxc4 {[%clk 0:00:48]} 33. Rb1 {[%clk 0:00:06]}  R5d7 {[%clk 0:00:41]} 34. g5 {[%clk 0:00:04]}  Bd5 {[%clk 0:00:41]} 35. Nfd2 {[%clk 0:00:03]}  Rc7 {[%clk 0:00:38]} 36. c4 {[%clk 0:00:03]}  Bxe4 {[%clk 0:00:35]} 37. Nxe4 {[%clk 0:00:02]}  Rxc4 {[%clk 0:00:35]} 38. Rb5 {[%clk 0:00:01]}  Ra8 {[%clk 0:00:29]} 39. Nf6+ {[%clk 0:00:01]}  Bxf6 {[%clk 0:00:28]} 40. gxf6 {[%clk 0:00:02]}  Rb4 {[%clk 0:00:28]} 41. Rc5 {[%clk 0:00:01]}  Rf4 {[%clk 0:00:27]} 42. Rc2 {[%clk 0:00:02]}  Rxf6 {[%clk 0:00:27]} 43. Ra1 {[%clk 0:00:02]}  Rf5 {[%clk 0:00:27]} 44. Rca2 {[%clk 0:00:03]}  Kg7 {[%clk 0:00:28]} 45. Kg2 {[%clk 0:00:03]}  Kf6 {[%clk 0:00:28]} 46. Kg3 {[%clk 0:00:03]}  Ra6 {[%clk 0:00:29]} 47. f4 {[%clk 0:00:03]}  Rb5 {[%clk 0:00:27]} 48. Ra3 {[%clk 0:00:04]}  g5 {[%clk 0:00:23]} 49. fxg5+ {[%clk 0:00:04]}  Kxg5 {[%clk 0:00:24]} 50. Ra4 {[%clk 0:00:03]}  Rb3+ {[%clk 0:00:21]} 51. Kg2 {[%clk 0:00:04]}  Rb5 {[%clk 0:00:22]} 52. Kg3 {[%clk 0:00:04]}  f5 {[%clk 0:00:22]} 53. R1a3 {[%clk 0:00:05]}  e5 {[%clk 0:00:22]} 54. h4+ {[%clk 0:00:05]}  Kf6 {[%clk 0:00:22]} 55. Kh3 {[%clk 0:00:05]}  Kg6 {[%clk 0:00:17]} 56. Kg3 {[%clk 0:00:05]}  Kh5 {[%clk 0:00:16]} 57. Kh3 {[%clk 0:00:06]}  f4 {[%clk 0:00:10]} 58. Re4 {[%clk 0:00:05]}  Rab6 {[%clk 0:00:08]} 59. Rea4 {[%clk 0:00:05]}  Rb3+ {[%clk 0:00:07]} 60. Kh2 {[%clk 0:00:05]}  Rxa3 {[%clk 0:00:07]} 61. Rxa3 {[%clk 0:00:06]}  Kxh4 {[%clk 0:00:07]} 62. Rxa5 {[%clk 0:00:07]}  e4 {[%clk 0:00:06]} 63. Ra4 {[%clk 0:00:05]}  Rb2+ {[%clk 0:00:04]} 64. Kg1 {[%clk 0:00:05]}  Re2 {[%clk 0:00:04]} 65. Kf1 {[%clk 0:00:05]}  Re3 {[%clk 0:00:04]} 66. Kf2 {[%clk 0:00:06]}  Kg4 {[%clk 0:00:04]} 67. Ra8 {[%clk 0:00:06]}  Rf3+ {[%clk 0:00:04]} 68. Kg2 {[%clk 0:00:07]}  Rb3 {[%clk 0:00:04]} 69. Rg8+ {[%clk 0:00:07]}  Kf5 {[%clk 0:00:04]} 70. Rf8+ {[%clk 0:00:08]}  Ke5 {[%clk 0:00:05]} 71. Re8+ {[%clk 0:00:09]}  Kd4 {[%clk 0:00:05]} 72. Rd8+ {[%clk 0:00:09]}  Ke3 {[%clk 0:00:05]} 73. Rc8 {[%clk 0:00:09]}  Rb2+ {[%clk 0:00:05]} 74. Kh3 {[%clk 0:00:09]}  f3 {[%clk 0:00:05]} 75. Rc3+ {[%clk 0:00:10]}  Kf4 {[%clk 0:00:05]} 76. Rc8 {[%clk 0:00:10]}  Re2 {[%clk 0:00:05]} 77. Rf8+ {[%clk 0:00:10]}  Ke3 {[%clk 0:00:06]} 78. Ra8 {[%clk 0:00:11]}  Kf2 {[%clk 0:00:06]} 79. Ra3 {[%clk 0:00:10]}  e3 {[%clk 0:00:07]} 80. Kh2 {[%clk 0:00:10]}  Rb2 {[%clk 0:00:05]} 81. Ra1 {[%clk 0:00:10]}  e2 {[%clk 0:00:05]} 82. Rg1 {[%clk 0:00:06]}  e1=Q {[%clk 0:00:04]} 83. Rf1+ {[%clk 0:00:06]}  Kxf1+ {[%clk 0:00:04]} 84. Kh3 {[%clk 0:00:05]}  f2 {[%clk 0:00:04]} 85. Kh2 {[%clk 0:00:06]}  Qa1 {[%clk 0:00:04]} 86. Kh1 {[%clk 0:00:07]}  Ke1 {[%clk 0:00:05]} 87. Kh2 {[%clk 0:00:07]}  Kd1 {[%clk 0:00:05]} 88. Kh1 {[%clk 0:00:08]}  Kd2+ {[%clk 0:00:06]} 89. Kh2 {[%clk 0:00:09]}  Ke2 {[%clk 0:00:07]} 90. Kh3 {[%clk 0:00:10]}  Ke3 {[%clk 0:00:07]} 91. Kh2 {[%clk 0:00:10]}  f1=Q+ {[%clk 0:00:07]} 92. Kg3 {[%clk 0:00:11]}  Qf3+ {[%clk 0:00:07]} 93. Kh4 {[%clk 0:00:11]}  Rh2+ {[%clk 0:00:06]} 94. Kg5 {[%clk 0:00:12]}  Rh5+ {[%clk 0:00:06]} 95. Kg6 {[%clk 0:00:12]}  Qf5# {[%clk 0:00:06]} 0-1


[Site "https://www.chess.com"]